bitfinex/quotes_BTCUSD_20240811
["timestamp","ask_amount","ask_price","bid_price","bid_amount"]
[1723400272495,1.35262413,60375.0,60374.0,0.01516118]
[1723400272698,1.35262413,60375.0,60374.0,0.011913]
[1723400272699,2.05840705,60375.0,60374.0,0.011913]
[1723400273608,2.05844183,60375.0,60374.0,0.011913]
[1723400274430,2.05744183,60375.0,60374.0,0.003913]
[1723400274682,2.05744115,60375.0,60374.0,0.007913]
[1723400274882,2.05644115,60375.0,60374.0,0.004913]
[1723400275617,2.05944115,60375.0,60374.0,0.004913]
[1723400276265,2.05944115,60375.0,60374.0,0.000913]
[1723400276467,2.02912737,60375.0,60374.0,0.000913]
[1723400276846,1.48952845,60375.0,60374.0,0.00416118]
[1723400277246,1.25764445,60375.0,60374.0,0.00416118]
[1723400277957,1.25164445,60375.0,60374.0,0.00416118]
[1723400278157,1.25364445,60375.0,60374.0,0.00416118]
[1723400278332,1.25564445,60375.0,60374.0,0.00416118]
[1723400278476,1.25364445,60375.0,60374.0,0.00416118]
[1723400279471,1.25164445,60375.0,60374.0,0.00416118]
[1723400279723,1.48352845,60375.0,60374.0,0.00416118]
[1723400280330,1.48352845,60375.0,60374.0,0.000913]
[1723400280500,1.25164445,60375.0,60374.0,0.00416118]
[1723400280701,1.01976045,60375.0,60374.0,0.00416118]
[1723400281938,1.25164445,60375.0,60374.0,0.00416118]
[1723400282645,1.25364445,60375.0,60374.0,0.00416118]
[1723400283106,1.25164445,60375.0,60374.0,0.00416118]
[1723400283255,1.25164445,60375.0,60374.0,0.00516118]
[1723400283456,1.25164445,60375.0,60374.0,0.00616118]
[1723400284202,1.48352845,60375.0,60374.0,0.00616118]
[1723400284404,1.54922845,60375.0,60374.0,0.00516118]
[1723400284747,1.54922845,60375.0,60374.0,0.00616118]
[1723400285150,1.54922845,60375.0,60374.0,0.00516118]
[1723400285391,1.55122845,60375.0,60374.0,0.00516118]
[1723400285797,1.54922845,60375.0,60374.0,0.00516118]
[1723400286121,1.54922845,60375.0,60374.0,0.00416118]
[1723400286271,1.48352845,60375.0,60374.0,0.00516118]
[1723400286473,1.48552845,60375.0,60374.0,0.00516118]
[1723400286812,1.25364445,60375.0,60374.0,0.00516118]
[1723400287539,1.25164445,60375.0,60374.0,0.00516118]
[1723400287744,1.25364445,60375.0,60374.0,0.00516118]
[1723400287961,1.25364445,60375.0,60374.0,0.08376118]
[1723400288170,1.25364445,60375.0,60374.0,0.08276118]
[1723400288539,1.25564445,60375.0,60374.0,0.08276118]
[1723400289146,1.25364445,60375.0,60374.0,0.08276118]
[1723400289580,1.25564445,60375.0,60374.0,0.08276118]
[1723400293041,0.90781845,60375.0,60374.0,1.54436518]
[1723400293250,0.90781845,60375.0,60374.0,1.25141893]
[1723400293655,0.90781845,60375.0,60374.0,1.06460401]
[1723400293656,0.90483,60375.0,60374.0,1.06460401]
[1723400294067,0.90283,60375.0,60374.0,1.22839896]
[1723400294275,0.90564076,60375.0,60374.0,1.22839896]
[1723400294861,0.90664076,60375.0,60374.0,1.24538981]
[1723400295181,0.90564076,60375.0,60374.0,1.23838981]
[1723400295298,0.90664076,60375.0,60374.0,1.24638981]
[1723400295518,0.90183,60375.0,60374.0,1.24638981]
[1723400295718,0.90183,60375.0,60374.0,1.25438981]
[1723400295983,0.90564076,60375.0,60374.0,1.25438981]
[1723400296538,0.90564076,60375.0,60374.0,1.30358707]
[1723400296739,0.90564076,60375.0,60374.0,1.32314303]
[1723400296964,0.90283,60375.0,60374.0,1.32314303]
[1723400297167,0.90283,60375.0,60374.0,1.25438981]
[1723400297365,0.90564077,60375.0,60374.0,1.25438981]
[1723400297666,0.90275897,60375.0,60374.0,1.19333309]
[1723400297878,0.90275897,60375.0,60374.0,1.30302682]
[1723400298252,0.90275897,60375.0,60374.0,1.32602682]
[1723400299263,0.8999482,60375.0,60374.0,1.32602682]
[1723400299865,0.8999482,60375.0,60374.0,1.50875168]
[1723400300088,0.8999482,60375.0,60374.0,1.27686468]
[1723400301518,0.8999482,60375.0,60374.0,1.32600747]
[1723400301878,0.8999482,60375.0,60374.0,1.21631374]
[1723400302086,0.8999482,60375.0,60374.0,1.32651785]
[1723400302486,0.8999482,60375.0,60374.0,1.27737506]
[1723400305463,0.8999482,60375.0,60374.0,1.2774559]
[1723400305879,0.8999482,60375.0,60374.0,1.5093429]
[1723400306085,0.8999482,60375.0,60374.0,1.3691559]
[1723400306295,0.8999482,60375.0,60374.0,1.3671559]
[1723400306502,0.8999482,60375.0,60374.0,1.66817538]
[1723400306708,0.8999482,60375.0,60374.0,1.67017538]
[1723400307128,0.8989482,60375.0,60374.0,1.66217538]
[1723400307332,0.90175895,60375.0,60374.0,1.66217538]
[1723400307770,0.90275895,60375.0,60374.0,1.67617538]
[1723400307943,0.90275895,60375.0,60374.0,1.79567538]
[1723400308144,0.90275895,60375.0,60374.0,1.7465429]
[1723400308348,0.90275895,60375.0,60374.0,1.81529296]
[1723400308551,0.90275895,60375.0,60374.0,1.86439025]
[1723400308728,0.90275895,60375.0,60374.0,1.88899169]
[1723400308947,0.8989482,60375.0,60374.0,1.80729296]
[1723400309149,0.8989482,60375.0,60374.0,1.85893228]
[1723400309346,0.90277756,60375.0,60374.0,1.616533]
[1723400310169,0.90277756,60375.0,60374.0,1.84842]
[1723400310361,0.90277756,60375.0,60374.0,1.22051808]
[1723400310557,0.8999482,60375.0,60374.0,0.50029996]
[1723400310792,1.2704322,60375.0,60374.0,0.03216118]
[1723400311032,1.85299097,60375.0,60374.0,0.028913]
[1723400311229,2.05006467,60375.0,60374.0,0.028913]
[1723400311645,2.05006467,60375.0,60374.0,0.014913]
[1723400311646,2.01580589,60375.0,60374.0,0.014913]
[1723400312262,2.01480589,60375.0,60374.0,0.000913]
[1723400312465,2.01480589,60375.0,60374.0,0.014913]
[1723400312665,2.01680589,60375.0,60374.0,0.028913]
[1723400312889,2.05001288,60375.0,60374.0,0.014913]
[1723400313123,2.01580589,60375.0,60374.0,0.014913]
[1723400313366,2.05499575,60375.0,60374.0,0.015913]
[1723400313608,2.02180589,60375.0,60374.0,0.015913]
[1723400313839,2.02180589,60375.0,60374.0,0.000913]
[1723400313840,2.04799575,60375.0,60374.0,0.000913]
[1723400314313,2.05399575,60375.0,60374.0,0.001913]
[1723400314514,2.04799575,60375.0,60374.0,0.000913]
[1723400314755,2.05799575,60375.0,60374.0,0.001913]
[1723400315232,2.15599575,60375.0,60374.0,0.001913]
[1723400315512,2.16599575,60375.0,60374.0,0.002913]
[1723400315757,2.14799575,60375.0,60374.0,0.000913]
[1723400315988,2.15899575,60375.0,60374.0,0.001913]
[1723400316447,2.14799575,60375.0,60374.0,0.000913]
[1723400316684,2.14799575,60375.0,60374.0,0.001913]
[1723400316912,2.15893076,60375.0,60374.0,0.001913]
[1723400317117,2.16993076,60375.0,60374.0,0.002913]
[1723400319252,1.90492189,60375.0,60374.0,0.002913]
[1723400319636,1.80492189,60375.0,60374.0,0.00616118]
[1723400319837,0.92279697,60375.0,60374.0,0.12210418]
[1723400320036,0.92279697,60375.0,60374.0,0.00616118]
[1723400320294,0.92279697,60375.0,60374.0,0.12210418]
[1723400320534,0.92279697,60375.0,60374.0,0.18250418]
[1723400320848,0.91179697,60375.0,60374.0,0.72537818]
[1723400321200,0.91179697,60375.0,60374.0,0.72637818]
[1723400321403,0.91179697,60375.0,60374.0,0.72537818]
[1723400321404,0.90079697,60375.0,60374.0,0.72537818]
[1723400321604,0.90079697,60375.0,60374.0,0.95826518]
[1723400321808,0.90079697,60375.0,60374.0,0.72637818]
[1723400322007,0.8979482,60375.0,60374.0,0.72637818]
[1723400322364,0.90073574,60375.0,60374.0,0.72637818]
[1723400323951,0.90073574,60375.0,60374.0,0.00616118]
[1723400324138,1.07937774,60375.0,60374.0,0.00616118]
[1723400324341,0.90073574,60375.0,60374.0,0.00616118]
[1723400324560,0.90073574,60375.0,60374.0,0.12210418]
[1723400324717,0.90073574,60375.0,60374.0,0.35399118]
[1723400325070,0.90073574,60375.0,60374.0,0.12210418]
[1723400325247,0.90073574,60375.0,60374.0,0.00516118]
[1723400325875,0.90073574,60375.0,60374.0,0.00916118]
[1723400326244,0.90073574,60375.0,60374.0,0.00516118]
[1723400326455,0.90073574,60375.0,60374.0,0.00416118]
[1723400326864,0.90073574,60375.0,60374.0,0.00816118]
[1723400327060,0.90073574,60375.0,60374.0,0.00416118]
[1723400327239,0.90073574,60375.0,60374.0,0.00616118]
[1723400328066,0.90073574,60375.0,60374.0,0.00716118]
[1723400328469,0.90073574,60375.0,60374.0,0.00616118]
[1723400328650,0.90073574,60375.0,60374.0,0.00716118]
[1723400330497,0.90073574,60375.0,60374.0,0.35499118]
[1723400330678,0.90073574,60375.0,60374.0,0.66257818]
[1723400330874,0.8979482,60375.0,60374.0,0.66257818]
[1723400331172,0.90076334,60375.0,60374.0,0.66257818]
[1723400331325,0.90076334,60375.0,60374.0,0.66157818]
[1723400331530,0.90076334,60375.0,60374.0,0.66457818]
[1723400332003,0.90076334,60375.0,60374.0,0.43269118]
[1723400332745,0.90076334,60375.0,60374.0,0.43069118]
[1723400333031,0.90076334,60375.0,60374.0,0.43369118]
[1723400333240,0.90076334,60375.0,60374.0,0.66557818]
[1723400335732,0.90076334,60375.0,60374.0,1.4579801]
[1723400335938,0.90076334,60375.0,60374.0,1.56951686]
[1723400336143,0.90076334,60375.0,60374.0,2.05329086]
[1723400336340,0.90076334,60375.0,60374.0,1.89015279]
[1723400336544,0.8979482,60375.0,60374.0,1.96375977]
[1723400336746,0.90077289,60375.0,60374.0,1.96075583]
[1723400337101,0.90177289,60375.0,60374.0,1.97475583]
[1723400337303,0.90077289,60375.0,60374.0,1.92575583]
[1723400337514,0.90077289,60375.0,60374.0,1.6838671]
[1723400337727,0.90077289,60375.0,60374.0,1.7198671]
[1723400337728,0.8989482,60375.0,60374.0,1.7198671]
[1723400337984,0.90178541,60375.0,60374.0,1.83010884]
[1723400338135,0.90178541,60375.0,60374.0,1.89685837]
[1723400338335,0.90178541,60375.0,60374.0,1.87718704]
[1723400338679,0.8999482,60375.0,60374.0,1.84210884]
[1723400338833,0.8979482,60375.0,60374.0,1.81410884]
[1723400339197,0.90078717,60375.0,60374.0,1.95993539]
[1723400339493,0.90078717,60375.0,60374.0,1.89685719]
[1723400339828,0.90078717,60375.0,60374.0,1.7318671]
[1723400340045,0.90078717,60375.0,60374.0,1.94807834]
[1723400340509,0.8979482,60375.0,60374.0,1.89900989]
[1723400340840,0.8979482,60375.0,60374.0,1.91300989]
[1723400340841,0.90178899,60375.0,60374.0,1.91300989]
[1723400341679,0.8989482,60375.0,60374.0,2.14489689]
[1723400341955,0.8989482,60375.0,60374.0,2.19396034]
[1723400342159,0.90178908,60375.0,60374.0,2.19396034]
[1723400342548,0.90178908,60375.0,60374.0,2.12521211]
[1723400342754,0.90178908,60375.0,60374.0,2.19395897]
[1723400342961,0.90178908,60375.0,60374.0,2.39034611]
[1723400343199,0.8989482,60375.0,60374.0,2.41488247]
[1723400343607,0.90178907,60375.0,60374.0,2.41488247]
[1723400343863,0.08184646,60403.0,60402.0,0.89017818]
[1723400344058,0.00083,60409.0,60408.0,0.35088318]
[1723400344255,0.00083,60409.0,60408.0,0.7464551]
[1723400344613,0.00083,60409.0,60408.0,0.35088318]
[1723400345841,0.00683,60409.0,60408.0,0.35188318]
[1723400346123,0.491959,60409.0,60408.0,0.001]
[1723400346343,0.491959,60409.0,60408.0,0.00424818]
[1723400346960,0.723712,60409.0,60408.0,0.00424818]
[1723400347161,0.723712,60409.0,60408.0,0.00524818]
[1723400348083,0.491959,60409.0,60408.0,0.00524818]
[1723400348684,0.491959,60409.0,60408.0,0.002]
[1723400348983,0.88752692,60409.0,60408.0,0.002]
[1723400351385,1.36778474,60409.0,60408.0,0.002]
[1723400351621,1.64551434,60409.0,60408.0,0.002]
[1723400352016,1.67868711,60409.0,60408.0,0.002]
[1723400352372,1.91044011,60409.0,60408.0,0.002]
[1723400352576,1.67868711,60409.0,60408.0,0.001]
[1723400352777,0.484098,60397.0,60396.0,0.00324818]
[1723400352981,0.48681034,60397.0,60396.0,0.00324818]
[1723400353707,0.715927,60394.0,60393.0,0.00324818]
[1723400353840,0.347727,60392.0,60391.0,0.00324818]
[1723400354044,0.368211,60394.0,60382.0,0.115928]
[1723400354045,0.347733,60391.0,60390.0,0.00324818]
[1723400354251,0.579555,60391.0,60390.0,0.00324818]
[1723400354570,0.58226041,60391.0,60390.0,0.00324818]
[1723400354981,0.00270541,60391.0,60390.0,0.00324818]
[1723400355181,0.003,60394.0,60393.0,0.00324818]
[1723400355523,0.115903,60396.0,60390.0,0.1427]
[1723400355524,0.115903,60396.0,60395.0,0.00324818]
[1723400355725,0.003,60397.0,60390.0,0.0768]
[1723400355726,0.115899,60397.0,60396.0,0.00324818]
[1723400355854,0.115898,60398.0,60397.0,0.00324818]
[1723400356058,0.115894,60400.0,60399.0,0.00324818]
[1723400356265,0.81607,60402.0,60401.0,0.00324818]
[1723400358361,0.81807,60402.0,60401.0,0.00324818]
[1723400358508,1.04985,60402.0,60401.0,0.00324818]
[1723400359411,1.05185,60402.0,60401.0,0.00324818]
[1723400360669,1.04985,60402.0,60401.0,0.00324818]
[1723400360875,0.58145,60402.0,60401.0,0.00324818]
[1723400361173,0.58345,60402.0,60401.0,0.00324818]
[1723400361532,0.58428,60402.0,60401.0,0.00324818]
[1723400361733,0.3525,60402.0,60401.0,0.00324818]
[1723400362383,0.12072,60402.0,60401.0,0.00324818]
[1723400362585,0.20256646,60402.0,60401.0,0.00324818]
[1723400362929,0.00483,60402.0,60401.0,0.11914018]
[1723400363107,0.00483,60402.0,60401.0,0.35092418]
[1723400363312,0.00283,60402.0,60401.0,0.35092418]
[1723400363528,0.00383,60402.0,60401.0,0.35092418]
[1723400363697,0.00283,60402.0,60401.0,0.11914018]
[1723400363899,0.00083,60402.0,60401.0,0.11914018]
[1723400364149,0.00183,60402.0,60401.0,0.12114018]
[1723400364562,0.00452155,60402.0,60401.0,0.35292418]
[1723400364764,0.00352155,60402.0,60401.0,0.35292418]
[1723400364946,0.00352155,60402.0,60401.0,0.12214018]
[1723400365146,0.00352155,60402.0,60401.0,0.003]
[1723400365147,0.87545155,60402.0,60401.0,0.003]
[1723400365320,0.64367155,60402.0,60401.0,0.003]
[1723400365784,1.15422684,60402.0,60401.0,0.003]
[1723400366332,1.15422684,60402.0,60401.0,0.001]
[1723400366711,1.16322684,60402.0,60401.0,0.002]
[1723400366871,1.16322684,60402.0,60400.0,0.00324818]
[1723400366872,0.57946,60401.0,60400.0,0.00324818]
[1723400367076,0.347692,60398.0,60397.0,0.00324818]
[1723400367310,0.579487,60398.0,60397.0,0.00324818]
[1723400367456,0.347704,60396.0,60395.0,0.00324818]
[1723400367660,0.579507,60396.0,60395.0,0.00324818]
[1723400367890,0.58221788,60396.0,60395.0,0.00324818]
[1723400369454,0.11861188,60396.0,60395.0,0.14594818]
[1723400369655,0.00271088,60396.0,60395.0,0.08004818]
[1723400370030,0.00371088,60396.0,60395.0,0.08004818]
[1723400370237,0.00271088,60396.0,60395.0,0.08004818]
[1723400370431,0.00371088,60396.0,60395.0,0.08004818]
[1723400370641,0.00371088,60396.0,60395.0,0.08104818]
[1723400370940,0.00271088,60396.0,60395.0,0.08004818]
[1723400371132,0.00271088,60396.0,60395.0,0.08204818]
[1723400371313,0.00271088,60396.0,60395.0,0.08304818]
[1723400373384,0.00271088,60396.0,60395.0,0.08004818]
[1723400373778,0.11861188,60396.0,60395.0,0.00824818]
[1723400374004,0.35041488,60396.0,60395.0,0.00824818]
[1723400374292,0.11861188,60396.0,60395.0,0.00824818]
[1723400374716,0.11861188,60396.0,60395.0,0.00624818]
[1723400374878,0.11861188,60396.0,60395.0,0.00724818]
[1723400375281,0.64671788,60396.0,60395.0,0.00724818]
[1723400376633,0.64671788,60396.0,60395.0,0.00424818]
[1723400376820,0.64871788,60396.0,60395.0,0.00324818]
[1723400376962,0.64671788,60396.0,60395.0,0.00324818]
[1723400377162,0.64671788,60396.0,60395.0,0.00524818]
[1723400377544,0.64871788,60396.0,60395.0,0.00324818]
[1723400377929,0.65071788,60396.0,60395.0,0.00324818]
[1723400379737,0.64671788,60396.0,60395.0,0.00324818]
[1723400380114,0.64871788,60396.0,60395.0,0.00324818]
[1723400380436,0.65071788,60396.0,60395.0,0.00324818]
[1723400381016,0.12261188,60396.0,60395.0,0.08214818]
[1723400381222,0.00671088,60396.0,60395.0,0.08214818]
[1723400382686,0.12261188,60396.0,60395.0,0.08214818]
[1723400382910,0.12061188,60396.0,60395.0,0.08214818]
[1723400383112,0.11861188,60396.0,60395.0,0.08214818]
[1723400383267,0.11861188,60396.0,60395.0,0.08514818]
[1723400383471,0.11861188,60396.0,60395.0,0.08314818]
[1723400383877,0.11861188,60396.0,60395.0,0.08514818]
[1723400384042,0.11861188,60396.0,60395.0,0.08714818]
[1723400384615,0.00271088,60396.0,60395.0,0.08714818]
[1723400385301,0.00271088,60396.0,60395.0,0.66666518]
[1723400385625,0.00083,60402.0,60395.0,0.66666518]
[1723400385626,0.00083,60402.0,60401.0,0.19804018]
[1723400385808,0.00083,60402.0,60401.0,0.8361189]
[1723400386601,0.00083,60402.0,60401.0,0.6043349]
[1723400386806,0.00483,60402.0,60401.0,0.6043349]
[1723400387010,0.00883,60402.0,60401.0,0.6043349]
[1723400387240,0.00763796,60402.0,60401.0,0.8361189]
[1723400387971,0.00763796,60402.0,60401.0,0.83658813]
[1723400387972,0.004,60402.0,60401.0,0.83658813]
[1723400388098,0.004,60402.0,60401.0,0.83758813]
[1723400388498,0.00083,60409.0,60408.0,0.00324818]
[1723400388918,0.0035307,60409.0,60408.0,0.00324818]
[1723400390102,0.0045307,60409.0,60408.0,0.09104818]
[1723400390280,0.0035307,60409.0,60408.0,0.08504818]
[1723400390493,0.0035307,60409.0,60408.0,0.08904818]
[1723400390689,0.0035307,60409.0,60408.0,0.09404818]
[1723400391887,0.0035307,60409.0,60408.0,0.00724818]
[1723400392089,0.1194067,60409.0,60408.0,0.00724818]
[1723400392246,0.1194067,60409.0,60408.0,0.00624818]
[1723400392452,0.1194067,60409.0,60408.0,0.00324818]
[1723400392736,0.1194067,60409.0,60408.0,0.00524818]
[1723400392888,1.24098062,60409.0,60408.0,0.002]
[1723400393091,0.115882,60406.0,60405.0,0.00324818]
[1723400393293,0.347647,60406.0,60405.0,0.00324818]
[1723400393511,0.35036194,60406.0,60405.0,0.00324818]
[1723400393745,0.115888,60403.0,60402.0,0.00324818]
[1723400393947,0.66128646,60403.0,60402.0,0.00324818]
[1723400394096,0.66400137,60403.0,60402.0,0.00324818]
[1723400394660,0.11860291,60403.0,60402.0,0.00324818]
[1723400394865,0.00271491,60403.0,60402.0,0.00324818]
[1723400395298,0.115886,60404.0,60403.0,0.00324818]
[1723400395704,0.11860091,60404.0,60403.0,0.00324818]
[1723400396827,0.12260091,60404.0,60403.0,0.00324818]
[1723400399311,0.35437291,60404.0,60403.0,0.00324818]
[1723400400057,0.35037291,60404.0,60403.0,0.00324818]
[1723400400265,0.35137291,60404.0,60403.0,0.00324818]
[1723400400456,0.35237291,60404.0,60403.0,0.00324818]
[1723400400667,0.35137291,60404.0,60403.0,0.00324818]
[1723400401191,0.35037291,60404.0,60403.0,0.00324818]
[1723400401396,0.347664,60403.0,60402.0,0.00324818]
[1723400401641,0.66400929,60403.0,60402.0,0.00324818]
[1723400402481,0.43223329,60403.0,60402.0,0.00324818]
[1723400402684,0.11861083,60403.0,60402.0,0.00324818]
[1723400406581,0.11861083,60403.0,60402.0,0.00424818]
[1723400406807,0.11861083,60403.0,60402.0,0.00524818]
[1723400407206,0.11861083,60403.0,60402.0,0.00324818]
[1723400408968,0.11861083,60403.0,60402.0,0.08504818]
[1723400409707,0.11861083,60403.0,60402.0,0.08604818]
[1723400409926,0.11861083,60403.0,60402.0,0.08704818]
[1723400410229,0.11861083,60403.0,60402.0,0.08796118]
[1723400410550,0.11944083,60403.0,60402.0,0.08796118]
[1723400412451,0.11944083,60403.0,60402.0,0.08696118]
[1723400412653,0.11944083,60403.0,60402.0,0.08596118]
[1723400412974,0.11944083,60403.0,60402.0,0.08796118]
[1723400413200,0.11944083,60403.0,60402.0,0.09096118]
[1723400415201,0.11944083,60403.0,60402.0,0.00916118]
[1723400415376,0.11944083,60403.0,60402.0,0.00716118]
[1723400415818,0.11944083,60403.0,60402.0,0.00516118]
[1723400416039,0.11944083,60403.0,60402.0,0.00616118]
[1723400416217,0.11944083,60403.0,60402.0,0.00516118]
[1723400416410,0.11944083,60403.0,60402.0,0.00416118]
[1723400416736,0.11944083,60403.0,60402.0,0.00516118]
[1723400416969,0.00355283,60403.0,60402.0,0.00516118]
[1723400417169,0.00355283,60403.0,60402.0,0.00616118]
[1723400417322,0.11944083,60403.0,60402.0,0.00616118]
[1723400419306,0.15271383,60403.0,60402.0,0.00616118]
[1723400419927,0.23241383,60403.0,60402.0,0.00616118]
[1723400420358,0.19914083,60403.0,60402.0,0.00616118]
[1723400420563,0.23239763,60403.0,60402.0,0.00616118]
[1723400420764,0.46417363,60403.0,60402.0,0.00616118]
[1723400420984,0.23239763,60403.0,60402.0,0.00616118]
[1723400424751,0.46417363,60403.0,60402.0,0.00616118]
[1723400424878,0.46417363,60403.0,60402.0,0.002913]
[1723400424879,1.16219237,60403.0,60402.0,0.002913]
[1723400425085,1.23929237,60403.0,60402.0,0.002913]
[1723400425685,1.23254055,60403.0,60402.0,0.002913]
[1723400426040,1.35214055,60403.0,60402.0,0.000913]
[1723400426245,1.35414055,60403.0,60402.0,0.000913]
[1723400426464,1.35314055,60403.0,60402.0,0.000913]
[1723400426633,1.36225976,60403.0,60402.0,0.000913]
[1723400426810,1.33300296,60403.0,60402.0,0.000913]
[1723400427020,1.36618946,60403.0,60402.0,0.000913]
[1723400427436,1.37118946,60403.0,60402.0,0.000913]
[1723400428045,1.37794128,60403.0,60402.0,0.000913]
[1723400428255,1.36718946,60403.0,60402.0,0.000913]
[1723400428606,1.37218946,60403.0,60402.0,0.000913]
[1723400428851,1.37894128,60403.0,60402.0,0.000913]
[1723400429083,1.37894128,60403.0,60401.0,0.000913]
[1723400429084,0.16775182,60402.0,60401.0,0.000913]
[1723400429344,0.16775182,60402.0,60375.0,0.00416118]
[1723400429345,0.231868,60379.0,60375.0,0.00416118]
[1723400429568,0.347796,60380.0,60379.0,0.49432692]
[1723400429769,0.28114646,60382.0,60378.0,0.00324818]
[1723400429770,0.115934,60379.0,60378.0,0.00324818]
[1723400429926,0.347802,60379.0,60378.0,0.00324818]
[1723400430288,0.34782,60376.0,60375.0,0.00416118]
[1723400431355,0.5797,60376.0,60375.0,0.000913]
[1723400431992,0.81158,60376.0,60375.0,0.000913]
[1723400432375,1.69354189,60376.0,60375.0,0.000913]
[1723400432761,1.71354189,60376.0,60375.0,0.000913]
[1723400433317,1.71354189,60376.0,60375.0,0.002913]
[1723400433519,1.71354189,60376.0,60375.0,0.000913]
[1723400433967,1.71954189,60376.0,60375.0,0.000913]
[1723400436395,1.68624274,60376.0,60375.0,0.000913]
[1723400440710,1.68889453,60376.0,60375.0,0.000913]
[1723400442408,1.08576271,60376.0,60375.0,0.000913]
[1723400442611,0.85388271,60376.0,60375.0,0.083113]
[1723400443330,1.08576271,60376.0,60375.0,0.083113]
[1723400443553,1.08576271,60376.0,60375.0,0.000913]
[1723400443746,0.85388271,60376.0,60375.0,0.000913]
[1723400444188,1.08576271,60376.0,60375.0,0.000913]
[1723400444822,0.85388271,60376.0,60375.0,0.00416118]
[1723400444997,0.85388271,60376.0,60375.0,0.000913]
[1723400447028,1.08576271,60376.0,60375.0,0.000913]
[1723400447989,1.15891453,60376.0,60375.0,0.000913]
[1723400448943,1.17891453,60376.0,60375.0,0.000913]
[1723400449175,1.41079453,60376.0,60375.0,0.000913]
[1723400449375,1.17891453,60376.0,60375.0,0.000913]
[1723400449802,1.40779453,60376.0,60375.0,0.000913]
[1723400450001,1.54703196,60376.0,60375.0,0.000913]
[1723400450223,1.94079816,60376.0,60375.0,0.000913]
[1723400450450,0.60649882,60371.0,60370.0,0.000913]
[1723400450628,1.71168177,60371.0,60370.0,0.000913]
[1723400450781,1.94358077,60371.0,60370.0,0.000913]
[1723400450984,1.96922736,60371.0,60370.0,0.000913]
[1723400451804,1.93555733,60371.0,60370.0,0.000913]
[1723400452009,1.44685682,60368.0,60364.0,0.0009119]
[1723400452209,1.66726609,60368.0,60364.0,0.0009119]
[1723400452383,1.67008226,60368.0,60364.0,0.0009119]
[1723400452583,1.77008226,60368.0,60364.0,0.0009119]
[1723400453369,1.78408226,60368.0,60367.0,0.001913]
[1723400453570,1.78410201,60368.0,60367.0,0.001913]
[1723400454316,1.79610201,60368.0,60367.0,0.002913]
[1723400454817,1.44184019,60368.0,60367.0,0.002913]
[1723400455019,1.36984019,60368.0,60367.0,0.002913]
[1723400455195,1.03793019,60368.0,60367.0,0.002913]
[1723400455408,1.0378589,60368.0,60367.0,0.002913]
[1723400455622,1.00414061,60368.0,60367.0,0.002913]
[1723400455791,1.24280243,60368.0,60367.0,0.002913]
[1723400456144,1.37916084,60368.0,60367.0,0.002913]
[1723400456702,1.47916084,60368.0,60367.0,0.002913]
[1723400456920,1.39656084,60368.0,60367.0,0.002913]
[1723400459296,1.39676383,60368.0,60367.0,0.002913]
[1723400459488,1.47860667,60368.0,60367.0,0.002913]
[1723400459793,1.38001201,60368.0,60367.0,0.002913]
[1723400460000,1.36601201,60368.0,60367.0,0.001913]
[1723400460493,1.36801201,60368.0,60367.0,0.001913]
[1723400460607,1.36801201,60368.0,60367.0,0.08206118]
[1723400460608,0.02764069,60368.0,60367.0,0.08206118]
[1723400460974,0.011,60368.0,60367.0,0.08106118]
[1723400461148,0.115947,60373.0,60372.0,0.00324818]
[1723400461325,0.27976192,60373.0,60372.0,0.07914818]
[1723400461525,0.231877,60377.0,60373.0,0.00324818]
[1723400461526,0.115943,60374.0,60373.0,0.00324818]
[1723400461927,0.349537,60376.0,60375.0,0.00324818]
[1723400462133,0.349537,60376.0,60373.0,0.00324818]
[1723400462134,0.115945,60374.0,60373.0,0.00324818]
[1723400462624,0.16553092,60376.0,60373.0,0.00324818]
[1723400462829,0.51335092,60376.0,60375.0,0.00324818]
[1723400463022,0.28147092,60376.0,60375.0,0.00324818]
[1723400463421,0.51635092,60376.0,60375.0,0.00324818]
[1723400464132,0.51935092,60376.0,60375.0,0.00324818]
[1723400464930,0.115945,60373.0,60372.0,0.0759]
[1723400465112,0.42968246,60373.0,60372.0,0.0759]
[1723400465310,0.19779146,60373.0,60372.0,0.0759]
[1723400465578,0.08184646,60373.0,60372.0,0.07914818]
[1723400466450,0.08284646,60373.0,60372.0,0.20109518]
[1723400466831,0.28147092,60376.0,60375.0,0.00324818]
[1723400467230,0.51335092,60376.0,60375.0,0.00324818]
[1723400468742,0.115943,60374.0,60373.0,0.00324818]
[1723400470428,0.115943,60374.0,60373.0,0.00524818]
[1723400470769,0.11857526,60374.0,60373.0,0.00724818]
[1723400472264,0.00263226,60374.0,60373.0,0.00724818]
[1723400472477,0.115942,60375.0,60374.0,0.00324818]
[1723400472681,0.11857424,60375.0,60374.0,0.00324818]
[1723400473781,0.11857424,60375.0,60374.0,0.00424818]
[1723400473980,0.11857424,60375.0,60374.0,0.00524818]
[1723400474650,0.35045824,60375.0,60374.0,0.00524818]
[1723400476197,0.74615716,60375.0,60374.0,0.002]
[1723400476615,0.74615716,60375.0,60374.0,0.00524818]
[1723400476821,0.00263224,60375.0,60374.0,0.72776518]
[1723400476972,0.00263224,60375.0,60374.0,0.49587818]
[1723400477144,0.002547,60376.0,60375.0,0.00324818]
[1723400477347,0.118487,60376.0,60375.0,0.07994818]
[1723400477534,0.58490001,60376.0,60375.0,0.07994818]
[1723400478220,0.35302001,60376.0,60375.0,0.07994818]
[1723400486713,0.35802001,60376.0,60375.0,0.07994818]
[1723400486925,0.36302001,60376.0,60375.0,0.07994818]
[1723400487129,0.35802001,60376.0,60375.0,0.07994818]
[1723400488191,0.35302001,60376.0,60375.0,0.07994818]
[1723400488866,0.35802001,60376.0,60375.0,0.07994818]
[1723400489050,0.35302001,60376.0,60375.0,0.07994818]
[1723400489247,0.35502001,60376.0,60375.0,0.07994818]
[1723400489444,0.38903703,60376.0,60375.0,0.07994818]
[1723400489614,0.39303703,60376.0,60375.0,0.07994818]
[1723400490065,0.38903703,60376.0,60375.0,0.07994818]
[1723400490575,0.39203703,60376.0,60375.0,0.07994818]
[1723400490731,0.62391703,60376.0,60375.0,0.07994818]
[1723400491075,0.39203703,60376.0,60375.0,0.07994818]
[1723400491372,0.62391703,60376.0,60375.0,0.07994818]
[1723400491583,0.39203703,60376.0,60375.0,0.07994818]
[1723400491788,0.62391703,60376.0,60375.0,0.07994818]
[1723400492116,0.70371703,60376.0,60375.0,0.07994818]
[1723400492332,0.47183703,60376.0,60375.0,0.07994818]
[1723400493463,0.47177798,60376.0,60375.0,0.07994818]
[1723400494934,0.6355929,60376.0,60375.0,0.07994818]
[1723400495162,0.8674729,60376.0,60375.0,0.07994818]
[1723400497309,0.83351493,60376.0,60375.0,0.07994818]
[1723400497533,0.867637,60376.0,60375.0,0.07994818]
[1723400497771,0.83351493,60376.0,60375.0,0.07994818]
[1723400498017,0.86761348,60376.0,60375.0,0.07994818]